bitfinex/quotes_ETHUSD_20240824
["timestamp","ask_amount","ask_price","bid_price","bid_amount"]
[1724519067477,3.29634396,2812.5,2811.2,4.2001]
[1724519067705,3.55628,2812.0,2811.2,5.275838]
[1724519067855,7.11257,2812.0,2811.2,5.275838]
[1724519068059,3.55628,2812.0,2811.2,5.275838]
[1724519068261,3.55644,2811.8,2811.2,5.275838]
[1724519069800,3.55632,2811.9,2811.2,5.275838]
[1724519070686,3.55644,2811.8,2811.0,3.0]
[1724519071002,3.55678,2811.6,2810.9,3.0]
[1724519072087,3.55702,2811.4,2810.8,4.0154]
[1724519072297,3.55715,2811.3,2810.8,4.0154]
[1724519072502,3.5572,2811.2,2810.8,4.0154]
[1724519073407,3.5572,2811.2,2810.3,4.0154]
[1724519073408,3.65220096,2811.2,2810.3,4.0154]
[1724519073709,3.55751,2811.0,2810.3,4.0154]
[1724519074386,3.55702,2811.4,2810.5,3.55796]
[1724519074762,3.55727,2811.2,2810.3,7.57372]
[1724519075085,3.55745,2811.0,2810.4,3.0]
[1724519075604,3.9552,2811.7,2810.4,3.0]
[1724519075605,3.55641,2811.9,2811.1,3.55724]
[1724519075807,3.55641,2811.9,2810.5,4.39671546]
[1724519075808,3.55611,2812.1,2811.2,3.55708]
[1724519076009,3.55611,2812.1,2811.0,3.55735]
[1724519076162,3.55632,2811.9,2811.1,3.5573]
[1724519076406,3.55632,2811.9,2811.0,7.11472]
[1724519076562,3.55632,2811.9,2811.1,1.113012]
[1724519076759,3.55611,2812.1,2811.1,1.113012]
[1724519076963,3.55611,2812.1,2811.2,3.55711]
[1724519077673,3.55626,2812.0,2811.2,3.55711]
[1724519078869,3.55632,2811.9,2811.0,3.0]
[1724519079074,3.55657,2811.7,2811.0,3.0]
[1724519080115,3.5567,2811.6,2811.0,3.0]
[1724519081424,3.55683,2811.5,2811.0,3.0]
[1724519081716,3.55683,2811.5,2810.9,4.0154]
[1724519082065,7.11375,2811.5,2810.9,4.0154]
[1724519082501,3.55683,2811.5,2810.9,4.0154]
[1724519083167,7.11376,2811.5,2810.9,4.0154]
[1724519083377,7.11377,2811.5,2810.9,4.0154]
[1724519083608,3.55683,2811.5,2810.9,4.0154]
[1724519084052,3.55625,2812.0,2811.1,3.55731]
[1724519084342,3.9552,2812.3,2811.3,3.55699]
[1724519084343,3.556,2812.2,2811.3,3.55699]
[1724519084897,3.55613,2812.1,2811.3,3.55699]
[1724519085538,3.556,2812.2,2811.3,7.11395]
[1724519085745,7.11203,2812.2,2811.3,4.568355]
[1724519086319,7.11203,2812.2,2811.4,3.9398]
[1724519086531,3.55609,2812.1,2811.4,3.9398]
[1724519087905,3.556,2812.2,2811.4,7.49665]
[1724519088103,3.556,2812.2,2811.5,0.83793676]
[1724519088104,7.11203,2812.2,2811.5,0.83793676]
[1724519088549,3.556,2812.2,2811.5,0.83793676]
[1724519089207,3.556,2812.2,2811.5,4.39471676]
[1724519089406,3.456,2812.2,2811.5,4.39471676]
[1724519089645,3.456,2812.2,2811.5,0.83793676]
[1724519091136,7.01203,2812.2,2811.5,0.83793676]
[1724519091573,3.456,2812.2,2811.5,0.83793676]
[1724519091729,7.01204,2812.2,2811.5,0.83793676]
[1724519092489,3.55577,2812.4,2811.6,4.25819]
[1724519092785,3.55568,2812.5,2811.6,4.25819]
[1724519092993,3.55568,2812.5,2811.7,3.55651]
[1724519093190,3.5557,2812.4,2811.8,4.0118]
[1724519093611,3.55562,2812.5,2811.8,4.838794]
[1724519093748,7.11127,2812.5,2811.8,4.838794]
[1724519094087,2.94077896,2812.9,2811.8,4.838794]
[1724519094088,3.55543,2812.6,2811.8,8.395224]
[1724519094287,3.55557,2812.5,2811.8,8.395224]
[1724519094588,3.55581,2812.3,2811.8,4.0118]
[1724519094795,3.55572,2812.4,2811.8,4.0118]
[1724519095102,3.55581,2812.3,2811.8,4.0118]
[1724519096050,3.55598,2812.2,2811.8,4.0118]
[1724519096250,3.55581,2812.3,2811.8,4.0118]
[1724519097974,7.11126,2812.5,2811.8,4.0118]
[1724519098180,3.5556,2812.5,2811.8,4.768641]
[1724519098698,7.11126,2812.5,2811.8,4.768641]
[1724519099125,3.55571,2812.4,2811.8,4.768641]
[1724519099302,3.5556,2812.5,2811.8,4.768641]
[1724519099726,3.55576,2812.4,2811.8,4.768641]
[1724519100253,3.5556,2812.5,2811.8,8.325021]
[1724519100621,3.55591,2812.3,2811.8,4.0118]
[1724519101006,3.55604,2812.2,2811.8,4.0118]
[1724519101520,3.5562,2812.0,2811.5,4.0118]
[1724519103962,3.55631,2811.9,2811.1,7.56902]
[1724519104333,3.55631,2811.9,2811.2,3.55716]
[1724519104669,3.55611,2812.1,2811.2,3.55716]
[1724519104670,3.55611,2812.1,2811.2,7.11426]
[1724519104822,3.55611,2812.1,2811.3,3.55706]
[1724519106479,3.55621,2812.0,2811.1,5.124439]
[1724519106771,3.55611,2812.1,2811.2,6.55718]
[1724519106772,3.55631,2811.9,2811.2,6.55718]
[1724519107065,3.55645,2811.8,2811.2,3.0]
[1724519108179,3.55612,2812.1,2811.2,3.0]
[1724519108321,3.55632,2811.9,2811.2,3.0]
[1724519108860,3.55632,2811.9,2811.2,6.55716]
[1724519109071,3.55632,2811.9,2811.2,8.0810439]
[1724519109670,3.55632,2811.9,2811.2,4.5238839]
[1724519109970,3.55612,2812.1,2811.2,3.0]
[1724519110190,3.55642,2811.9,2811.2,3.0]
[1724519110783,7.11285,2811.9,2811.2,3.0]
[1724519110927,3.55642,2811.9,2811.2,3.0]
[1724519112226,3.55621,2812.0,2811.2,3.0]
[1724519112428,3.55621,2812.0,2811.2,4.0569]
[1724519112762,3.55621,2812.0,2811.2,7.61402]
[1724519112970,7.11226,2812.1,2811.3,3.55705]
[1724519113123,3.5561,2812.1,2811.3,3.55705]
[1724519113323,7.11226,2812.1,2811.3,5.075351]
[1724519113658,3.5561,2812.1,2811.3,5.075281]
[1724519113863,3.55583,2812.3,2811.5,7.5086]
[1724519114478,7.11174,2812.3,2811.5,7.5086]
[1724519114774,7.11174,2812.3,2811.5,3.9518]
[1724519114775,3.55601,2812.2,2811.5,3.9518]
[1724519114941,3.55606,2812.1,2811.5,3.9518]
[1724519116675,3.5562,2812.0,2811.5,3.9518]
[1724519116841,3.55606,2812.1,2811.5,3.9518]
[1724519117327,3.5562,2812.0,2811.5,3.9518]
[1724519118780,3.55633,2811.9,2811.5,3.9518]
[1724519119873,3.556,2812.2,2811.5,3.9518]
[1724519120074,3.556,2812.2,2811.6,0.39518]
[1724519120802,3.5562,2812.0,2811.6,0.39518]
[1724519120963,3.5562,2812.0,2811.5,3.9518]
[1724519122919,3.55645,2811.8,2811.5,3.9518]
[1724519123121,2.94077896,2812.3,2811.2,6.9518]
[1724519123414,3.55652,2811.8,2811.2,3.9518]
[1724519123958,3.55663,2811.7,2811.2,3.9518]
[1724519124163,3.55652,2811.8,2811.2,3.9518]
[1724519124361,3.55652,2811.8,2811.2,4.34698]
[1724519124604,3.55631,2811.9,2811.2,7.90417]
[1724519124762,7.11249,2812.0,2811.2,7.90417]
[1724519125162,2.94077896,2812.3,2811.3,3.55696]
[1724519125163,6.49667896,2812.3,2811.3,3.55696]
[1724519125619,3.55607,2812.1,2811.3,3.55696]
[1724519126000,3.55607,2812.1,2811.3,4.703081]
[1724519127929,3.55632,2811.9,2811.3,1.146121]
[1724519129205,3.55632,2811.9,2810.9,6.55755]
[1724519129206,2.94077896,2812.0,2810.8,3.985]
[1724519129364,3.55712,2811.3,2810.8,3.985]
[1724519129669,3.55685,2811.5,2810.8,3.985]
[1724519129870,3.55699,2811.4,2810.8,3.985]
[1724519130875,3.55696,2811.4,2810.8,3.985]
[1724519131772,3.5579,2810.7,2810.3,3.9183]
[1724519132266,0.0742993,2810.6,2810.3,3.9183]
[1724519134011,3.55763,2810.9,2810.3,3.9183]
[1724519134214,0.07427964,2810.5,2810.3,3.9183]
[1724519134457,3.55763,2810.9,2810.3,3.9183]
[1724519134661,0.07401022,2810.4,2810.3,4.965984]
[1724519134837,3.55763,2810.9,2810.3,4.965984]
[1724519135366,0.07402818,2810.8,2810.3,4.965984]
[1724519135716,0.07402818,2810.8,2810.5,3.55806]
[1724519135917,3.55713,2811.3,2810.6,3.9183]
[1724519136157,0.07377084,2810.7,2810.6,3.9183]
[1724519136367,3.55713,2811.3,2810.6,4.665936]
[1724519136660,0.0737759,2810.7,2810.6,4.665936]
[1724519136879,3.55713,2811.3,2810.6,4.665936]
[1724519137181,0.07382363,2811.2,2810.6,4.665936]
[1724519137530,0.07382363,2811.2,2810.6,3.9183]
[1724519137752,3.55753,2811.0,2810.6,3.9183]
[1724519138274,0.0739113,2810.9,2810.6,3.9183]
[1724519138430,3.6315013,2810.9,2810.3,3.9183]
[1724519138625,3.55781,2810.8,2810.3,3.9183]
[1724519138866,3.6315013,2810.9,2810.3,3.9183]
[1724519138867,3.63171912,2810.7,2810.3,3.9183]
[1724519139587,3.55799,2810.6,2810.3,3.9183]
[1724519139733,3.55817,2810.5,2810.0,3.9183]
[1724519139932,3.63201756,2810.5,2810.0,3.9183]
[1724519140174,3.55829,2810.4,2810.0,3.9183]
[1724519140571,3.63201756,2810.5,2809.5,3.5593]
[1724519140572,3.63221858,2810.3,2809.5,3.5593]
[1724519140758,3.55867,2810.1,2809.7,3.9183]
[1724519141155,0.07353555,2810.0,2809.7,3.9183]
[1724519142589,3.5581,2810.5,2809.7,7.47738]
[1724519142793,0.07348958,2809.9,2809.7,7.47738]
[1724519143092,3.55822,2810.4,2809.7,7.47738]
[1724519143292,3.55822,2810.4,2809.8,0.747738]
[1724519143583,0.07338978,2810.3,2809.8,0.747738]
[1724519143886,0.07338978,2810.3,2809.7,3.9183]
[1724519145047,3.63172978,2810.3,2809.7,3.9183]
[1724519145246,3.55867,2810.1,2809.7,3.9183]
[1724519145590,0.0733763,2810.0,2809.4,10.29206]
[1724519145803,3.55857,2810.2,2809.4,10.29206]
[1724519145947,0.07337181,2809.9,2809.4,11.677226]
[1724519146288,3.55857,2810.2,2809.4,11.677226]
[1724519146442,3.55859,2810.1,2809.4,8.117766]
[1724519146645,3.55872,2810.0,2809.4,8.117766]
[1724519146886,3.55872,2810.0,2809.4,3.7326]
[1724519147096,3.55872,2810.0,2809.1,6.7326]
[1724519147390,3.55905,2809.8,2809.1,6.7326]
[1724519147777,0.07312392,2809.7,2809.1,6.7326]
[1724519148769,0.07312392,2809.7,2809.1,10.29244]
[1724519149088,3.5585,2810.2,2809.3,3.55948]
[1724519149302,0.07294342,2809.6,2809.4,3.7326]
[1724519149499,3.8306,2810.1,2809.0,3.7326]
[1724519149786,3.8306,2810.1,2808.4,7.31]
[1724519149787,3.55958,2809.4,2808.6,3.7326]
[1724519150193,3.55977,2809.2,2808.6,3.7326]
[1724519150398,3.55995,2809.1,2808.6,3.7326]
[1724519150607,0.07272835,2809.1,2808.6,3.7326]
[1724519151152,3.63266835,2809.1,2808.6,3.7326]
[1724519152799,0.07272835,2809.1,2808.6,3.7326]
[1724519153287,3.55952,2809.4,2808.6,3.7326]
[1724519153288,3.55969,2809.3,2808.6,3.7326]
[1724519153505,0.07231885,2809.0,2808.6,3.7326]
[1724519153651,3.55969,2809.3,2808.6,4.817985]
[1724519153850,0.07231435,2808.9,2808.6,4.817985]
[1724519154107,3.55969,2809.3,2808.6,4.817985]
[1724519154257,0.07230985,2808.8,2808.6,4.817985]
[1724519154461,3.55969,2809.3,2808.6,4.817985]
[1724519154706,0.07230536,2808.7,2808.6,4.817985]
[1724519154862,3.55969,2809.3,2808.6,3.7326]
[1724519155049,6.49964896,2809.9,2808.6,3.7326]
[1724519155050,2.94077896,2809.9,2808.6,7.29303]
[1724519155245,0.07230758,2809.2,2808.6,7.29303]
[1724519155703,0.07201168,2809.1,2808.6,3.7326]
[1724519157935,3.55999,2809.0,2808.6,3.7326]
[1724519158326,0.072104,2808.9,2808.6,3.7326]
[1724519160348,0.4353134,2808.9,2808.2,4.0295]
[1724519160694,0.072104,2808.9,2808.2,4.0295]
[1724519160947,3.56031,2808.8,2808.2,4.0295]
[1724519161144,7.19255397,2808.8,2808.2,4.0295]
[1724519161295,3.63221397,2808.8,2808.2,4.0295]
[1724519162508,0.07190397,2808.8,2808.2,4.0295]
[1724519162844,0.07190397,2808.8,2808.2,5.144665]
[1724519163413,0.07190397,2808.8,2808.4,3.56074]
[1724519163607,3.55937,2809.5,2808.2,8.705555]
[1724519163924,3.56006,2809.0,2808.2,8.705555]
[1724519164110,0.07189962,2808.9,2808.2,8.705555]
[1724519164311,3.56031,2808.8,2808.2,4.0295]
[1724519164613,3.56052,2808.6,2808.2,4.0295]
[1724519164842,0.07189316,2808.7,2808.2,4.0295]
[1724519165038,0.07175474,2808.5,2808.2,4.0295]
[1724519165204,3.56057,2808.6,2808.2,4.0295]
[1724519165405,0.07175024,2808.4,2808.2,4.0295]
[1724519165600,3.56057,2808.6,2808.2,4.0295]
[1724519165939,3.56031,2808.8,2808.2,4.0295]
[1724519165940,0.07174448,2808.3,2808.2,4.0295]
[1724519166134,3.9085,2809.0,2808.2,4.0295]
[1724519166135,3.56004,2809.0,2808.2,4.43245]
[1724519166326,3.55996,2809.1,2808.3,3.56081]
[1724519166524,0.07172403,2809.0,2808.3,3.56081]
[1724519166736,0.07172403,2809.0,2808.4,3.56073]
[1724519167051,3.55963,2809.3,2808.7,3.7857]
[1724519167202,0.07169996,2808.9,2808.7,3.7857]
[1724519167400,3.55986,2809.1,2808.7,3.7857]
[1724519167603,0.0717112,2808.8,2808.7,3.7857]
[1724519167849,3.55999,2809.0,2808.7,3.7857]
[1724519168057,0.07176694,2808.8,2808.3,3.7857]
[1724519168258,4.271968,2809.0,2808.3,3.7857]
[1724519168412,0.07176244,2808.7,2808.3,3.7857]
[1724519168606,4.271968,2809.0,2808.3,3.7857]
[1724519168607,3.55999,2809.0,2808.3,3.7857]
[1724519168862,3.55951,2809.4,2808.3,3.7857]
[1724519168863,0.07175794,2808.6,2808.3,3.7857]
[1724519169065,3.56045,2808.7,2808.3,3.7857]
[1724519169275,0.07175345,2808.5,2808.3,3.7857]
[1724519169476,4.272519,2808.7,2808.3,3.7857]
[1724519169617,0.07174895,2808.4,2808.3,3.7857]
[1724519169966,3.56063,2808.5,2808.3,3.7857]
[1724519170162,0.07174895,2808.4,2808.3,3.7857]
[1724519170598,4.272519,2808.7,2808.3,3.7857]
[1724519170711,0.07174585,2808.4,2808.3,3.7857]
[1724519171129,0.07174585,2808.4,2808.1,3.7806]
[1724519171513,0.07174136,2808.3,2808.1,3.7806]
[1724519171720,0.07174136,2808.3,2808.1,7.34171]
[1724519171914,7.11982,2809.1,2808.2,3.56098]
[1724519172145,4.215273,2809.5,2808.6,3.56048]
[1724519172146,7.11937,2809.3,2808.6,3.56048]
[1724519172347,3.55967,2809.3,2808.5,3.56061]
[1724519172668,3.55967,2809.3,2808.6,3.56047]
[1724519172964,3.55967,2809.3,2808.6,3.5604]
[1724519173165,4.215323,2809.5,2808.6,3.5604]
[1724519173336,2.94077896,2809.8,2808.7,3.7806]
[1724519173538,0.06918035,2809.2,2808.8,3.56015]
[1724519173753,3.55935,2809.5,2808.8,3.56015]
[1724519173953,7.11881,2809.5,2808.8,3.56015]
[1724519174268,7.11881,2809.5,2808.8,7.1203]
[1724519174269,3.55935,2809.5,2808.8,7.1203]
[1724519174501,0.0691703,2809.4,2808.8,4.7592568]
[1724519175177,0.0691703,2809.4,2808.9,3.56011]
[1724519175469,3.55923,2809.6,2808.9,3.56011]
[1724519175649,0.06916581,2809.3,2808.9,3.56011]
[1724519175848,7.11835,2809.7,2808.9,3.56011]
[1724519176038,3.55914,2809.7,2809.0,3.55998]
[1724519176371,3.55924,2809.6,2808.9,1.21001368]
[1724519176574,3.55937,2809.5,2808.9,1.21001368]
[1724519177019,0.06941887,2809.4,2808.9,1.21001368]
[1724519178292,3.55914,2809.7,2808.9,4.77011368]
[1724519178478,0.06944991,2809.3,2808.9,4.77011368]
[1724519178682,3.55914,2809.7,2809.0,4.64542437]
[1724519178832,0.06947582,2809.2,2809.0,3.8124]
[1724519179033,3.55914,2809.7,2809.0,3.8124]
[1724519179762,3.62874379,2809.6,2809.0,3.8124]
[1724519183032,0.06949379,2809.6,2809.0,3.8124]
[1724519183262,0.06949379,2809.6,2809.0,7.37229]
[1724519183847,0.06949379,2809.6,2809.1,0.737229]
[1724519184251,3.62877379,2809.6,2809.1,0.737229]
[1724519185678,0.06949379,2809.6,2809.1,0.737229]
[1724519186054,3.55922,2809.6,2809.1,0.737229]
[1724519186333,0.06954033,2809.5,2809.0,7.37238]
[1724519186533,3.55918,2809.7,2809.0,7.37238]
[1724519186844,0.06954483,2809.6,2809.0,7.37238]
[1724519188895,0.06954483,2809.6,2809.0,10.93228]
[1724519189044,0.06954483,2809.6,2809.0,7.3723]
[1724519189396,0.06954483,2809.6,2809.5,11.1593]
[1724519189651,0.06954483,2809.6,2809.5,11.11288678]
[1724519189826,3.55829,2810.4,2809.6,3.55916]
[1724519189984,3.55772,2810.8,2809.9,4.0406]
[1724519190189,0.06724857,2810.3,2810.1,3.55857]
[1724519190427,7.29473,2811.1,2810.1,4.318487]
[1724519190626,3.55726,2811.2,2810.3,3.92]
[1724519190627,3.55752,2811.0,2810.3,3.92]
[1724519191402,3.55752,2811.0,2810.3,7.47828]
[1724519191598,3.55726,2811.2,2810.3,7.47828]
[1724519191599,7.11455,2811.2,2810.4,3.5582]
[1724519191831,3.55726,2811.2,2810.4,3.5582]
[1724519192137,3.55675,2811.6,2810.5,3.55807]
[1724519192352,3.55697,2811.4,2810.5,3.55807]
[1724519192484,3.55708,2811.3,2810.6,3.55795]
[1724519193139,3.55708,2811.3,2810.7,3.92]
[1724519197012,3.55695,2811.4,2810.7,3.92]
[1724519197221,3.55695,2811.4,2810.8,0.747784]
[1724519197453,3.55707,2811.3,2810.8,0.747784]
[1724519201543,7.11425,2811.3,2810.7,3.92]
[1724519201723,3.55723,2811.2,2810.7,3.92]
[1724519201941,3.55707,2811.3,2810.7,3.92]
[1724519202268,7.11424,2811.3,2810.7,3.92]
[1724519202414,3.55707,2811.3,2810.7,3.92]
[1724519203650,0.06910251,2811.2,2810.7,3.92]
[1724519204453,0.06910251,2811.2,2810.6,3.9844]
[1724519204626,0.06910251,2811.2,2810.6,5.094458]
[1724519205425,0.06910251,2811.2,2810.6,8.652388]
[1724519220364,7.42820251,2811.2,2810.4,7.11621]
[1724519220518,7.42820251,2811.2,2810.5,6.55803]
[1724519221020,7.42820251,2811.2,2810.6,3.55794]
[1724519222016,3.87100251,2811.2,2810.6,3.55794]
[1724519222221,0.06910251,2811.2,2810.7,3.802]
[1724519222538,3.55651,2811.8,2810.7,3.802]
[1724519222539,3.55564,2812.5,2811.7,3.55655]
[1724519222878,3.8019,2812.8,2811.7,3.55655]
[1724519222879,3.55545,2812.6,2811.8,0.58985344]
[1724519223084,3.55539,2812.7,2811.9,3.5563]
[1724519223391,3.55494,2813.0,2812.1,3.802]
[1724519223538,3.8019,2813.3,2812.3,3.55571]
[1724519223725,3.8019,2813.3,2812.0,0.58985344]
[1724519223726,3.55447,2813.4,2812.6,3.55533]
[1724519224070,3.55447,2813.4,2811.9,3.55624]
[1724519224071,3.55572,2812.4,2811.8,3.0]
[1724519224252,3.55581,2812.3,2811.7,3.802]
[1724519224822,0.355572,2812.4,2811.7,3.802]
[1724519225368,0.355572,2812.4,2811.8,3.55641]
[1724519225567,0.355572,2812.4,2811.7,7.35855]
[1724519226061,3.55582,2812.3,2811.7,3.802]
[1724519226265,0.7467102,2812.2,2811.6,3.55669]
[1724519226476,3.911282,2812.4,2811.7,3.55655]
[1724519227348,0.355572,2812.4,2811.7,3.55648]
[1724519227532,3.55546,2812.6,2811.7,3.55648]
[1724519227736,3.55546,2812.6,2811.9,3.55631]
[1724519228081,3.55564,2812.5,2811.7,3.55648]
[1724519228467,3.55546,2812.6,2811.8,3.55641]
[1724519228667,3.55546,2812.6,2811.7,3.55648]
[1724519228979,3.55546,2812.6,2811.7,3.912128]
[1724519228980,4.266528,2812.6,2811.7,3.912128]
[1724519229181,4.266528,2812.6,2811.8,3.55641]
[1724519229385,7.822068,2812.6,2811.8,3.55641]
[1724519230095,0.711068,2812.6,2811.9,3.55628]
[1724519230274,3.5552,2812.8,2812.0,3.55609]
[1724519230275,0.06078164,2812.5,2812.0,3.55609]
[1724519230587,3.5552,2812.8,2812.0,3.55609]
[1724519230785,0.06078223,2812.4,2812.0,3.55609]
[1724519231027,7.11049,2812.8,2812.0,3.55609]
[1724519231167,0.06077774,2812.3,2812.2,3.55593]
[1724519231477,6.59111,2813.2,2812.2,3.55583]
[1724519231679,6.59111,2813.2,2812.4,3.55556]
[1724519231879,0.06090991,2813.1,2812.5,3.55554]
[1724519232184,3.61570991,2813.1,2812.4,3.55556]
[1724519232380,0.06090991,2813.1,2812.4,3.55556]
[1724519232551,0.06090991,2813.1,2812.4,4.315477]
[1724519232785,0.06090991,2813.1,2812.4,0.759917]
[1724519232786,3.55493,2813.0,2812.4,0.759917]
[1724519233084,0.06087542,2812.9,2812.4,0.759917]
[1724519233854,0.06087542,2812.9,2812.2,3.0]
[1724519234179,3.5554,2812.7,2812.0,6.62354]
[1724519234480,0.06177472,2812.6,2812.0,6.62354]
[1724519235680,0.06177472,2812.6,2812.0,10.17964]
[1724519235879,0.06177472,2812.6,2812.0,6.6235]
[1724519236094,0.06177472,2812.6,2812.0,6.62349]
[1724519236233,3.61720472,2812.6,2812.0,3.0674]
[1724519236435,3.55565,2812.5,2811.8,3.0]
[1724519236775,3.55589,2812.3,2811.6,3.179]
[1724519236953,3.55589,2812.3,2810.8,4.07236315]
[1724519236954,3.15538391,2812.5,2811.3,3.55707]
[1724519237150,3.5562,2812.0,2811.2,7.11418]
[1724519237456,3.55618,2812.1,2811.3,3.55706]
[1724519237457,0.06176994,2811.9,2811.3,3.55706]
[1724519237776,3.55618,2812.1,2811.3,3.55706]
[1724519237777,7.11234,2812.1,2811.3,3.55706]
[1724519237938,0.06176546,2811.8,2811.4,6.7359]
[1724519238138,4.267394,2812.1,2811.4,6.7359]
[1724519238379,0.06169509,2811.7,2811.4,6.7359]
[1724519238699,0.06157909,2811.6,2811.4,3.179]
[1724519238900,0.06157909,2811.6,2810.8,3.71531658]
[1724519238901,3.55683,2811.5,2810.8,6.73668]
[1724519239351,0.06158976,2811.4,2810.8,6.73668]
[1724519239898,3.61855976,2811.4,2810.8,3.179]
[1724519240580,3.55718,2811.3,2810.4,6.73713]
[1724519240905,3.5574,2811.1,2810.4,3.179]
[1724519241349,0.06075818,2811.0,2810.4,3.179]
[1724519241550,0.06075818,2811.0,2810.4,6.7372]
[1724519242292,0.06075818,2811.0,2810.5,3.55798]
[1724519242590,3.55718,2811.3,2810.5,3.62913326]
[1724519242790,0.06075369,2810.9,2810.5,3.55798]
[1724519242996,3.0936,2811.7,2810.7,3.55775]
[1724519242997,3.55684,2811.5,2810.7,3.55775]
[1724519243200,0.06073971,2810.8,2810.7,3.55775]
[1724519243346,3.55684,2811.5,2810.7,3.55775]
[1724519243682,7.11377,2811.5,2810.7,3.55775]
[1724519243886,3.55708,2811.3,2810.6,3.55783]
[1724519244074,3.91908555,2811.2,2810.4,6.73712]
[1724519244259,3.91908555,2811.2,2810.5,3.0]
[1724519244260,0.42255207,2811.2,2810.5,3.0]
[1724519244559,0.42255207,2811.2,2810.6,3.55795]
[1724519244560,0.06076652,2811.2,2810.6,3.55795]
[1724519244963,3.55703,2811.4,2810.6,3.55795]
[1724519245163,0.06076203,2811.1,2810.6,3.55795]
[1724519245344,3.55703,2811.4,2810.6,3.55795]
[1724519245549,3.55703,2811.4,2810.7,3.55782]
[1724519245550,0.06075754,2811.0,2810.7,3.55782]
[1724519245764,3.55703,2811.4,2810.7,3.55782]
[1724519246003,0.06075305,2810.9,2810.7,3.55782]
[1724519246149,3.0936,2811.7,2810.8,6.7639]
[1724519246356,3.55679,2811.6,2810.8,6.7639]
[1724519246656,3.61742458,2811.6,2810.8,6.7639]
[1724519246974,4.64417204,2811.6,2810.8,6.7639]
[1724519247297,3.5569,2811.5,2810.8,6.7639]
[1724519247608,3.61752813,2811.5,2810.8,6.7639]
[1724519248479,0.06062813,2811.5,2810.9,3.55755]
[1724519248684,7.11324,2811.7,2810.9,4.589695]
[1724519248993,0.06063295,2811.4,2810.9,4.589695]
[1724519249305,0.06062649,2811.3,2810.9,4.589695]
[1724519249600,7.11325,2811.7,2810.9,4.589695]
[1724519249810,0.06029774,2811.2,2810.9,4.589695]
[1724519249948,3.5567,2811.6,2811.0,0.7795895]
[1724519250152,0.06029129,2811.1,2810.9,4.589695]
[1724519250465,3.55637,2811.9,2811.0,3.55744]
[1724519250667,3.55669,2811.6,2811.0,3.55744]
[1724519250849,3.55669,2811.6,2811.0,0.7795785]
[1724519251405,3.55691,2811.5,2810.8,3.2062]
[1724519252298,3.55691,2811.5,2810.8,6.76387]
[1724519253200,3.55704,2811.4,2810.8,3.2062]
[1724519253369,3.55707,2811.3,2810.8,3.2062]
[1724519254306,3.55692,2811.5,2810.8,3.2062]
[1724519254468,3.55695,2811.4,2810.8,3.2062]
[1724519256358,3.55649,2811.8,2810.8,4.238368]
[1724519256556,3.55693,2811.5,2810.8,3.2062]
[1724519256878,3.5567,2811.6,2810.8,6.7638]
[1724519257276,7.1135,2811.6,2810.8,6.7638]
[1724519257564,3.55684,2811.5,2810.8,6.7638]
[1724519258070,3.5567,2811.6,2810.8,6.7638]
[1724519258274,3.5567,2811.6,2810.8,7.795952]
[1724519258597,3.5567,2811.6,2810.9,3.55756]
[1724519258968,7.11348,2811.6,2810.9,3.55756]
[1724519259179,3.55733,2811.1,2810.3,2.7734]
[1724519259374,3.55816,2810.5,2810.0,2.7734]
[1724519259624,3.55775,2810.8,2810.0,2.7734]
[1724519259830,7.11557,2810.8,2810.0,6.33205]
[1724519259986,7.7709083,2810.8,2810.0,6.33205]
[1724519260186,3.55785,2810.7,2810.0,6.33205]
[1724519262049,3.55785,2810.7,2810.0,9.89068]
[1724519262335,3.55785,2810.7,2810.0,2.7734]
[1724519262625,3.55809,2810.5,2810.0,2.7734]
[1724519262842,7.11578,2810.7,2810.0,2.7734]
[1724519263125,7.11579,2810.7,2810.0,2.7734]
[1724519263420,7.11577,2810.7,2810.0,6.33211]
[1724519263619,0.05983023,2810.6,2810.0,6.33211]
[1724519263940,0.05983023,2810.6,2810.0,7.32112]
[1724519264076,0.05983023,2810.6,2810.0,10.87976]
[1724519264275,0.05983023,2810.6,2810.0,7.32112]
[1724519265047,0.05983023,2810.6,2810.0,10.87975]
[1724519265191,0.05983023,2810.6,2810.0,7.32112]
[1724519265529,3.55763,2810.9,2810.3,2.5309]
[1724519266047,0.05961397,2810.8,2810.3,2.5309]
[1724519266826,3.61732397,2810.8,2810.3,2.5309]
[1724519267349,0.05961397,2810.8,2810.3,2.5309]
[1724519267678,0.05961397,2810.8,2810.4,0.07115967]
[1724519267918,2.5138,2811.8,2810.8,3.55763]
[1724519267919,3.55683,2811.5,2810.8,3.55763]
[1724519268133,3.55663,2811.7,2810.9,3.55757]
[1724519268293,0.05980246,2811.4,2810.8,3.55763]
[1724519268522,3.55676,2811.6,2810.9,0.07114271]
[1724519268718,0.05979797,2811.3,2810.9,0.07114271]
[1724519268931,3.55682,2811.5,2810.8,3.55762]
[1724519269598,0.05980246,2811.4,2810.9,0.07114275]
[1724519270837,0.05980246,2811.4,2810.8,3.5576]
[1724519271398,0.05980246,2811.4,2810.7,2.5309]
[1724519271604,3.61682246,2811.4,2810.7,2.5309]
[1724519271795,7.17386246,2811.4,2810.7,2.5309]
[1724519272041,3.61682246,2811.4,2810.7,6.08872]
[1724519272236,3.61682246,2811.4,2810.7,7.0793996]
[1724519272444,0.05980246,2811.4,2810.8,3.55768]
[1724519272608,7.1135,2811.6,2810.8,3.55768]
[1724519272609,3.55682,2811.5,2810.8,3.62882574]
[1724519272810,0.06034926,2811.4,2810.8,3.55768]
[1724519273543,7.11349,2811.6,2810.8,3.62882574]
[1724519273748,3.55682,2811.5,2810.8,3.55768]